[Event "Titled Tuesday Blitz December 13 Early 2022"]
[White "Turzo, Attila"]
[Black "Valle Maytin, Luis Enrique"]
[WhiteFideId "704954"]
[BlackFideId "3503666"]
[WhiteElo "2568"]
[BlackElo "2225"]
[Result "1-0"]
[Round "08"]
[TimeControl "180+1"]
[Date "2022.12.14"]
[WhiteClock "0:00:43"]
[BlackClock "0:00:02"]

1. d4 {[%clk 0:03:00]}  Nf6 {[%clk 0:02:59]} 2. c4 {[%clk 0:03:01]}  e6 {[%clk 0:02:51]} 3. Nf3 {[%clk 0:03:00]}  b6 {[%clk 0:02:49]} 4. g3 {[%clk 0:03:00]}  Bb7 {[%clk 0:02:49]} 5. Bg2 {[%clk 0:03:00]}  Be7 {[%clk 0:02:49]} 6. O-O {[%clk 0:03:00]}  O-O {[%clk 0:02:49]} 7. Nc3 {[%clk 0:03:01]}  d5 {[%clk 0:02:49]} 8. cxd5 {[%clk 0:02:56]}  Nxd5 {[%clk 0:02:45]} 9. Bf4 {[%clk 0:02:52]}  Nd7 {[%clk 0:02:37]} 10. Rc1 {[%clk 0:02:51]}  c5 {[%clk 0:02:24]} 11. dxc5 {[%clk 0:02:31]}  Nxc5 {[%clk 0:02:23]} 12. Nxd5 {[%clk 0:02:26]}  Bxd5 {[%clk 0:02:22]} 13. Ne5 {[%clk 0:02:19]}  Bxg2 {[%clk 0:02:17]} 14. Kxg2 {[%clk 0:02:18]}  Bf6 {[%clk 0:02:14]} 15. b3 {[%clk 0:02:03]}  Bxe5 {[%clk 0:01:49]} 16. Bxe5 {[%clk 0:02:02]}  Qxd1 {[%clk 0:01:49]} 17. Rfxd1 {[%clk 0:02:02]}  Rfd8 {[%clk 0:01:50]} 18. Kf3 {[%clk 0:01:56]}  f5 {[%clk 0:01:36]} 19. Ke3 {[%clk 0:01:52]}  g6 {[%clk 0:01:20]} 20. f3 {[%clk 0:01:44]}  Kf8 {[%clk 0:01:16]} 21. Bd6+ {[%clk 0:01:41]}  Ke8 {[%clk 0:00:45]} 22. Bxc5 {[%clk 0:01:40]}  Rxd1 {[%clk 0:00:45]} 23. Rxd1 {[%clk 0:01:41]}  bxc5 {[%clk 0:00:45]} 24. Rd6 {[%clk 0:01:40]}  Ke7 {[%clk 0:00:32]} 25. Rc6 {[%clk 0:01:40]}  a5 {[%clk 0:00:26]} 26. Rxc5 {[%clk 0:01:37]}  h5 {[%clk 0:00:21]} 27. a4 {[%clk 0:01:30]}  Rb8 {[%clk 0:00:12]} 28. Rb5 {[%clk 0:01:30]}  Rc8 {[%clk 0:00:12]} 29. Kd2 {[%clk 0:01:27]}  Ra8 {[%clk 0:00:12]} 30. f4 {[%clk 0:01:19]}  Ra6 {[%clk 0:00:12]} 31. h4 {[%clk 0:01:18]}  Kd6 {[%clk 0:00:11]} 32. Kd3 {[%clk 0:01:17]}  Ke7 {[%clk 0:00:09]} 33. e4 {[%clk 0:01:16]}  Kd6 {[%clk 0:00:09]} 34. e5+ {[%clk 0:01:14]}  Kc6 {[%clk 0:00:09]} 35. Kc4 {[%clk 0:01:13]}  Ra8 {[%clk 0:00:08]} 36. b4 {[%clk 0:01:06]}  axb4 {[%clk 0:00:08]} 37. Kxb4 {[%clk 0:01:06]}  Ra7 {[%clk 0:00:06]} 38. Rc5+ {[%clk 0:01:03]}  Kb6 {[%clk 0:00:06]} 39. a5+ {[%clk 0:01:01]}  Kb7 {[%clk 0:00:06]} 40. Kb5 {[%clk 0:01:00]}  Ra8 {[%clk 0:00:05]} 41. Rc6 {[%clk 0:00:57]}  Re8 {[%clk 0:00:05]} 42. Rd6 {[%clk 0:00:53]}  Ka7 {[%clk 0:00:04]} 43. Rd7+ {[%clk 0:00:52]}  Ka8 {[%clk 0:00:05]} 44. Ka6 {[%clk 0:00:44]}  Rc8 {[%clk 0:00:02]} 45. Rg7 {[%clk 0:00:44]}  Rc6+ {[%clk 0:00:02]} 46. Kb5 {[%clk 0:00:44]}  Rc8 {[%clk 0:00:02]} 47. Rxg6 {[%clk 0:00:43]} 1-0


[Site "https://www.chess.com"]

[Event "Titled Tuesday Blitz December 13 Early 2022"]
[White "Urazayev, Arystanbek"]
[Black "Terzi, Alexei"]
[WhiteFideId "13709810"]
[BlackFideId "13505076"]
[WhiteElo "2463"]
[BlackElo "2172"]
[Result "1-0"]
[Round "08"]
[TimeControl "180+1"]
[Date "2022.12.14"]
[WhiteClock "0:00:55"]
[BlackClock "0:00:12"]

1. e4 {[%clk 0:02:58]}  c5 {[%clk 0:02:59]} 2. Nf3 {[%clk 0:02:58]}  Nc6 {[%clk 0:02:58]} 3. Bb5 {[%clk 0:02:58]}  g6 {[%clk 0:02:58]} 4. O-O {[%clk 0:02:58]}  Bg7 {[%clk 0:02:57]} 5. c3 {[%clk 0:02:58]}  Nf6 {[%clk 0:02:56]} 6. e5 {[%clk 0:02:58]}  Nd5 {[%clk 0:02:54]} 7. d4 {[%clk 0:02:59]}  cxd4 {[%clk 0:02:52]} 8. cxd4 {[%clk 0:03:00]}  O-O {[%clk 0:02:48]} 9. Nc3 {[%clk 0:03:00]}  Nc7 {[%clk 0:02:44]} 10. Bf4 {[%clk 0:03:00]}  Nxb5 {[%clk 0:02:37]} 11. Nxb5 {[%clk 0:03:01]}  a6 {[%clk 0:02:37]} 12. Nc3 {[%clk 0:03:01]}  d6 {[%clk 0:02:36]} 13. exd6 {[%clk 0:03:02]}  exd6 {[%clk 0:02:36]} 14. d5 {[%clk 0:03:03]}  Ne5 {[%clk 0:02:32]} 15. Nxe5 {[%clk 0:03:03]}  dxe5 {[%clk 0:02:33]} 16. Be3 {[%clk 0:03:04]}  Bd7 {[%clk 0:02:25]} 17. Bc5 {[%clk 0:03:04]}  Re8 {[%clk 0:02:25]} 18. d6 {[%clk 0:03:05]}  Bc6 {[%clk 0:02:21]} 19. Nd5 {[%clk 0:03:05]}  Bxd5 {[%clk 0:02:14]} 20. Qxd5 {[%clk 0:03:06]}  Qd7 {[%clk 0:02:15]} 21. Rfd1 {[%clk 0:03:05]}  Rac8 {[%clk 0:02:15]} 22. Rac1 {[%clk 0:03:06]}  Rc6 {[%clk 0:02:15]} 23. Ba3 {[%clk 0:03:05]}  Rec8 {[%clk 0:02:12]} 24. Rxc6 {[%clk 0:03:05]}  Rxc6 {[%clk 0:02:13]} 25. h4 {[%clk 0:03:05]}  h6 {[%clk 0:02:12]} 26. h5 {[%clk 0:03:05]}  gxh5 {[%clk 0:02:06]} 27. Qf3 {[%clk 0:03:05]}  h4 {[%clk 0:01:54]} 28. Qh3 {[%clk 0:03:05]}  Qd8 {[%clk 0:01:28]} 29. d7 {[%clk 0:03:03]}  Bf6 {[%clk 0:01:16]} 30. Qg4+ {[%clk 0:03:03]}  Kh8 {[%clk 0:01:07]} 31. Bd6 {[%clk 0:02:52]}  Qg8 {[%clk 0:00:39]} 32. Qf5 {[%clk 0:02:43]}  Kg7 {[%clk 0:00:27]} 33. Bxe5 {[%clk 0:02:39]}  Qd8 {[%clk 0:00:27]} 34. Qg4+ {[%clk 0:02:35]}  Kf8 {[%clk 0:00:26]} 35. Bd6+ {[%clk 0:02:33]}  Be7 {[%clk 0:00:24]} 36. Qxh4 {[%clk 0:02:29]}  Rxd6 {[%clk 0:00:20]} 37. Qg4 {[%clk 0:02:22]}  Rxd1+ {[%clk 0:00:19]} 38. Qxd1 {[%clk 0:02:23]}  Qb6 {[%clk 0:00:18]} 39. Qc1 {[%clk 0:02:16]}  Bd8 {[%clk 0:00:18]} 40. Qc3 {[%clk 0:02:16]}  Ke7 {[%clk 0:00:18]} 41. Qd2 {[%clk 0:02:12]}  Qd6 {[%clk 0:00:17]} 42. Qc2 {[%clk 0:02:06]}  Kxd7 {[%clk 0:00:17]} 43. Qb3 {[%clk 0:02:06]}  b5 {[%clk 0:00:11]} 44. Qxf7+ {[%clk 0:02:06]}  Kc6 {[%clk 0:00:12]} 45. g3 {[%clk 0:02:04]}  Bc7 {[%clk 0:00:12]} 46. Qe8+ {[%clk 0:02:01]}  Kb7 {[%clk 0:00:12]} 47. a4 {[%clk 0:02:01]}  Qc6 {[%clk 0:00:12]} 48. Qe1 {[%clk 0:01:54]}  bxa4 {[%clk 0:00:12]} 49. Kh2 {[%clk 0:01:55]}  Qc5 {[%clk 0:00:10]} 50. Qe4+ {[%clk 0:01:54]}  Qc6 {[%clk 0:00:10]} 51. Qe1 {[%clk 0:01:51]}  Qb5 {[%clk 0:00:11]} 52. Qe4+ {[%clk 0:01:49]}  Kb8 {[%clk 0:00:11]} 53. Qd4 {[%clk 0:01:47]}  Be5 {[%clk 0:00:10]} 54. Qd8+ {[%clk 0:01:46]}  Kb7 {[%clk 0:00:10]} 55. Qe7+ {[%clk 0:01:46]}  Bc7 {[%clk 0:00:10]} 56. Qe4+ {[%clk 0:01:44]}  Qc6 {[%clk 0:00:10]} 57. Qb4+ {[%clk 0:01:45]}  Kc8 {[%clk 0:00:09]} 58. f4 {[%clk 0:01:41]}  h5 {[%clk 0:00:07]} 59. Qd4 {[%clk 0:01:30]}  Kb7 {[%clk 0:00:06]} 60. Qb4+ {[%clk 0:01:27]}  Bb6 {[%clk 0:00:07]} 61. Qe7+ {[%clk 0:01:27]}  Qc7 {[%clk 0:00:07]} 62. Qe4+ {[%clk 0:01:27]}  Ka7 {[%clk 0:00:07]} 63. Kh3 {[%clk 0:01:21]}  Qd7+ {[%clk 0:00:07]} 64. f5 {[%clk 0:01:20]}  Qg7 {[%clk 0:00:07]} 65. Qc2 {[%clk 0:01:11]}  Qg4+ {[%clk 0:00:07]} 66. Kh2 {[%clk 0:01:11]}  h4 {[%clk 0:00:07]} 67. gxh4 {[%clk 0:01:11]}  Qxh4+ {[%clk 0:00:07]} 68. Kg2 {[%clk 0:01:11]}  Qg4+ {[%clk 0:00:08]} 69. Kh2 {[%clk 0:01:09]}  Qf4+ {[%clk 0:00:08]} 70. Kg2 {[%clk 0:01:09]}  Qg5+ {[%clk 0:00:07]} 71. Kf3 {[%clk 0:01:09]}  Qe3+ {[%clk 0:00:07]} 72. Kg4 {[%clk 0:01:08]}  Qd4+ {[%clk 0:00:06]} 73. Kh5 {[%clk 0:01:08]}  Bd8 {[%clk 0:00:05]} 74. Kg6 {[%clk 0:01:03]}  Qf6+ {[%clk 0:00:04]} 75. Kh7 {[%clk 0:01:03]}  Qf7+ {[%clk 0:00:04]} 76. Kh6 {[%clk 0:01:03]}  Qf6+ {[%clk 0:00:04]} 77. Kh7 {[%clk 0:01:03]}  Kb7 {[%clk 0:00:03]} 78. Kg8 {[%clk 0:01:00]}  Kb6 {[%clk 0:00:04]} 79. Qf2+ {[%clk 0:00:59]}  Kb5 {[%clk 0:00:04]} 80. Qc2 {[%clk 0:00:58]}  Kb4 {[%clk 0:00:04]} 81. Kh7 {[%clk 0:00:58]}  Kb5 {[%clk 0:00:05]} 82. Kg8 {[%clk 0:00:58]}  a5 {[%clk 0:00:05]} 83. Qd3+ {[%clk 0:00:56]}  Kb4 {[%clk 0:00:05]} 84. Qa3+ {[%clk 0:00:55]}  Kb5 {[%clk 0:00:05]} 85. Qd3+ {[%clk 0:00:56]}  Kc6 {[%clk 0:00:06]} 86. Qa6+ {[%clk 0:00:53]}  Kd5 {[%clk 0:00:06]} 87. Qb5+ {[%clk 0:00:49]}  Ke4 {[%clk 0:00:07]} 88. Qxa4+ {[%clk 0:00:49]}  Kxf5 {[%clk 0:00:07]} 89. Qc2+ {[%clk 0:00:45]}  Ke5 {[%clk 0:00:08]} 90. b4 {[%clk 0:00:43]}  Qg6+ {[%clk 0:00:05]} 91. Qxg6 {[%clk 0:00:43]}  axb4 {[%clk 0:00:04]} 92. Qb1 {[%clk 0:00:43]}  Be7 {[%clk 0:00:04]} 93. Qb3 {[%clk 0:00:44]}  Bc5 {[%clk 0:00:04]} 94. Kf7 {[%clk 0:00:45]}  Kd4 {[%clk 0:00:05]} 95. Ke8 {[%clk 0:00:46]}  Ke5 {[%clk 0:00:05]} 96. Kd7 {[%clk 0:00:47]}  Bd4 {[%clk 0:00:05]} 97. Kc6 {[%clk 0:00:48]}  Bc3 {[%clk 0:00:06]} 98. Kb6 {[%clk 0:00:49]}  Kd4 {[%clk 0:00:07]} 99. Kb5 {[%clk 0:00:50]}  Ke5 {[%clk 0:00:07]} 100. Qc4 {[%clk 0:00:50]}  Kd6 {[%clk 0:00:07]} 101. Ka4 {[%clk 0:00:51]}  Kd7 {[%clk 0:00:07]} 102. Kb3 {[%clk 0:00:52]}  Kd6 {[%clk 0:00:08]} 103. Kc2 {[%clk 0:00:53]}  Ke5 {[%clk 0:00:09]} 104. Kd3 {[%clk 0:00:54]}  Kd6 {[%clk 0:00:10]} 105. Ke4 {[%clk 0:00:55]}  Kd7 {[%clk 0:00:10]} 106. Qa6 {[%clk 0:00:54]}  Kc7 {[%clk 0:00:10]} 107. Kd5 {[%clk 0:00:55]}  Kd7 {[%clk 0:00:11]} 108. Qb7+ {[%clk 0:00:55]}  Ke8 {[%clk 0:00:12]} 109. Ke6 {[%clk 0:00:55]} 1-0


[Site "https://www.chess.com"]

[Event "Titled Tuesday Blitz December 13 Early 2022"]
[White "Vargas, Mauricio"]
[Black "Ramu, K."]
[WhiteFideId "4404572"]
[BlackFideId "5006171"]
[WhiteElo "2025"]
[BlackElo "2143"]
[Result "0-1"]
[Round "08"]
[TimeControl "180+1"]
[Date "2022.12.14"]
[WhiteClock "0:00:56"]
[BlackClock "0:00:47"]

1. e4 {[%clk 0:02:59]}  c5 {[%clk 0:02:59]} 2. Nc3 {[%clk 0:02:56]}  d6 {[%clk 0:02:58]} 3. f4 {[%clk 0:02:57]}  g6 {[%clk 0:02:58]} 4. Nf3 {[%clk 0:02:58]}  Bg7 {[%clk 0:02:59]} 5. Bb5+ {[%clk 0:02:59]}  Nc6 {[%clk 0:02:53]} 6. O-O {[%clk 0:02:58]}  Bd7 {[%clk 0:02:52]} 7. d3 {[%clk 0:02:57]}  e6 {[%clk 0:02:51]} 8. Qe1 {[%clk 0:02:57]}  Nge7 {[%clk 0:02:52]} 9. Ne2 {[%clk 0:02:54]}  a6 {[%clk 0:02:44]} 10. Ba4 {[%clk 0:02:53]}  b5 {[%clk 0:02:42]} 11. Bb3 {[%clk 0:02:53]}  Na5 {[%clk 0:02:39]} 12. c3 {[%clk 0:02:52]}  Nxb3 {[%clk 0:02:38]} 13. axb3 {[%clk 0:02:53]}  O-O {[%clk 0:02:37]} 14. Qh4 {[%clk 0:02:49]}  f5 {[%clk 0:02:18]} 15. Ng5 {[%clk 0:02:40]}  h6 {[%clk 0:02:17]} 16. Nf3 {[%clk 0:02:36]}  Bc6 {[%clk 0:02:08]} 17. Qg3 {[%clk 0:02:31]}  fxe4 {[%clk 0:02:00]} 18. dxe4 {[%clk 0:02:27]}  Bxe4 {[%clk 0:02:01]} 19. Nh4 {[%clk 0:02:26]}  Qe8 {[%clk 0:01:41]} 20. Be3 {[%clk 0:02:16]}  Nf5 {[%clk 0:01:34]} 21. Qf2 {[%clk 0:02:14]}  Nxh4 {[%clk 0:01:26]} 22. Qxh4 {[%clk 0:02:14]}  h5 {[%clk 0:01:17]} 23. Ng3 {[%clk 0:02:07]}  Bf5 {[%clk 0:01:12]} 24. Nxf5 {[%clk 0:02:02]}  exf5 {[%clk 0:01:13]} 25. Rae1 {[%clk 0:02:00]}  Qf7 {[%clk 0:01:11]} 26. Bf2 {[%clk 0:01:46]}  Rfe8 {[%clk 0:01:08]} 27. Qh3 {[%clk 0:01:43]}  Qxb3 {[%clk 0:01:04]} 28. Qg3 {[%clk 0:01:30]}  Qf7 {[%clk 0:01:02]} 29. Qf3 {[%clk 0:01:24]}  a5 {[%clk 0:00:59]} 30. Bh4 {[%clk 0:01:19]}  b4 {[%clk 0:00:55]} 31. Re3 {[%clk 0:01:17]}  Rxe3 {[%clk 0:00:54]} 32. Qxe3 {[%clk 0:01:16]}  Re8 {[%clk 0:00:55]} 33. Qd3 {[%clk 0:01:12]}  d5 {[%clk 0:00:53]} 34. Ra1 {[%clk 0:01:10]}  c4 {[%clk 0:00:51]} 35. h3 {[%clk 0:01:06]}  cxd3 {[%clk 0:00:50]} 36. Rxa5 {[%clk 0:00:59]}  bxc3 {[%clk 0:00:49]} 37. bxc3 {[%clk 0:00:58]}  Bxc3 {[%clk 0:00:48]} 38. Rc5 {[%clk 0:00:57]}  Bd4+ {[%clk 0:00:48]} 39. Bf2 {[%clk 0:00:56]}  Bxc5 {[%clk 0:00:48]} 40. Bxc5 {[%clk 0:00:56]}  Re2 {[%clk 0:00:47]} 0-1


[Site "https://www.chess.com"]

[Event "Titled Tuesday Blitz December 13 Early 2022"]
[White "Vlassov, Nikolai"]
[Black "Putnam, Liam"]
[WhiteFideId "4103360"]
[BlackFideId "30938279"]
[WhiteElo "2324"]
[BlackElo "2082"]
[Result "0-1"]
[Round "08"]
[TimeControl "180+1"]
[Date "2022.12.14"]
[WhiteClock "0:00:01"]
[BlackClock "0:00:01"]

1. e4 {[%clk 0:03:00]}  e6 {[%clk 0:02:56]} 2. c4 {[%clk 0:02:59]}  d5 {[%clk 0:02:57]} 3. cxd5 {[%clk 0:02:59]}  exd5 {[%clk 0:02:57]} 4. Qb3 {[%clk 0:03:00]}  Nc6 {[%clk 0:02:23]} 5. exd5 {[%clk 0:02:59]}  Nd4 {[%clk 0:02:23]} 6. Qe3+ {[%clk 0:02:58]}  Qe7 {[%clk 0:02:23]} 7. Bd3 {[%clk 0:02:50]}  Nf6 {[%clk 0:02:22]} 8. Nc3 {[%clk 0:02:46]}  Bf5 {[%clk 0:02:02]} 9. Kd1 {[%clk 0:02:15]}  Qxe3 {[%clk 0:01:50]} 10. dxe3 {[%clk 0:02:07]}  Bxd3 {[%clk 0:01:49]} 11. exd4 {[%clk 0:02:07]}  O-O-O {[%clk 0:01:48]} 12. Nf3 {[%clk 0:02:04]}  Nxd5 {[%clk 0:01:46]} 13. Ne5 {[%clk 0:01:57]}  Bg6 {[%clk 0:01:43]} 14. Nxg6 {[%clk 0:01:55]}  hxg6 {[%clk 0:01:44]} 15. Be3 {[%clk 0:01:54]}  Rh5 {[%clk 0:01:13]} 16. Nxd5 {[%clk 0:01:49]}  Rhxd5 {[%clk 0:01:04]} 17. Ke2 {[%clk 0:01:50]}  Be7 {[%clk 0:01:04]} 18. Rad1 {[%clk 0:01:25]}  Bf6 {[%clk 0:01:03]} 19. h4 {[%clk 0:01:25]}  Bxd4 {[%clk 0:00:50]} 20. Bxd4 {[%clk 0:01:25]}  Rxd4 {[%clk 0:00:51]} 21. Rxd4 {[%clk 0:01:25]}  Rxd4 {[%clk 0:00:52]} 22. h5 {[%clk 0:01:26]}  gxh5 {[%clk 0:00:53]} 23. Rxh5 {[%clk 0:01:25]}  Rb4 {[%clk 0:00:51]} 24. b3 {[%clk 0:01:25]}  Re4+ {[%clk 0:00:50]} 25. Kd3 {[%clk 0:01:25]}  Re6 {[%clk 0:00:48]} 26. Rh8+ {[%clk 0:01:19]}  Kd7 {[%clk 0:00:48]} 27. Rg8 {[%clk 0:01:19]}  g6 {[%clk 0:00:46]} 28. Rf8 {[%clk 0:01:16]}  Ke7 {[%clk 0:00:44]} 29. Ra8 {[%clk 0:01:11]}  a6 {[%clk 0:00:43]} 30. Ra7 {[%clk 0:01:08]}  Rb6 {[%clk 0:00:43]} 31. Kc4 {[%clk 0:01:05]}  Rb5 {[%clk 0:00:39]} 32. a4 {[%clk 0:01:02]}  Rb6 {[%clk 0:00:40]} 33. b4 {[%clk 0:00:56]}  Kd7 {[%clk 0:00:40]} 34. b5 {[%clk 0:00:54]}  axb5+ {[%clk 0:00:39]} 35. axb5 {[%clk 0:00:54]}  Rf6 {[%clk 0:00:26]} 36. f3 {[%clk 0:00:48]}  b6 {[%clk 0:00:26]} 37. Ra8 {[%clk 0:00:47]}  Rf4+ {[%clk 0:00:25]} 38. Kd5 {[%clk 0:00:46]}  Rf5+ {[%clk 0:00:25]} 39. Kc4 {[%clk 0:00:46]}  Rc5+ {[%clk 0:00:25]} 40. Kb4 {[%clk 0:00:46]}  Re5 {[%clk 0:00:26]} 41. Rf8 {[%clk 0:00:42]}  Ke7 {[%clk 0:00:25]} 42. Rc8 {[%clk 0:00:41]}  Kd7 {[%clk 0:00:26]} 43. Rf8 {[%clk 0:00:40]}  Rf5 {[%clk 0:00:26]} 44. Kc4 {[%clk 0:00:39]}  g5 {[%clk 0:00:23]} 45. Rg8 {[%clk 0:00:35]}  Rc5+ {[%clk 0:00:21]} 46. Kb4 {[%clk 0:00:35]}  Ke6 {[%clk 0:00:20]} 47. Re8+ {[%clk 0:00:29]}  Kf6 {[%clk 0:00:19]} 48. Re4 {[%clk 0:00:27]}  Rc2 {[%clk 0:00:18]} 49. g4 {[%clk 0:00:20]}  Rc5 {[%clk 0:00:17]} 50. f4 {[%clk 0:00:20]}  gxf4 {[%clk 0:00:18]} 51. Rxf4+ {[%clk 0:00:20]}  Kg6 {[%clk 0:00:18]} 52. Rd4 {[%clk 0:00:18]}  f6 {[%clk 0:00:18]} 53. Rd8 {[%clk 0:00:15]}  Kg5 {[%clk 0:00:18]} 54. Rg8+ {[%clk 0:00:15]}  Kf4 {[%clk 0:00:18]} 55. Rg7 {[%clk 0:00:15]}  Ke5 {[%clk 0:00:13]} 56. Rg6 {[%clk 0:00:14]}  Ke6 {[%clk 0:00:13]} 57. Rg7 {[%clk 0:00:13]}  Kd5 {[%clk 0:00:14]} 58. g5 {[%clk 0:00:13]}  f5 {[%clk 0:00:04]} 59. g6 {[%clk 0:00:12]}  Rc4+ {[%clk 0:00:05]} 60. Kb3 {[%clk 0:00:12]}  Rg4 {[%clk 0:00:06]} 61. Rxc7 {[%clk 0:00:06]}  Rxg6 {[%clk 0:00:06]} 62. Rf7 {[%clk 0:00:03]}  Rg5 {[%clk 0:00:05]} 63. Kb4 {[%clk 0:00:03]}  Rg4+ {[%clk 0:00:05]} 64. Kb3 {[%clk 0:00:04]}  Rf4 {[%clk 0:00:05]} 65. Rc7 {[%clk 0:00:01]}  Rf1 {[%clk 0:00:04]} 66. Rc6 {[%clk 0:00:01]}  f4 {[%clk 0:00:02]} 67. Rxb6 {[%clk 0:00:01]}  f3 {[%clk 0:00:03]} 68. Rf6 {[%clk 0:00:01]}  f2 {[%clk 0:00:02]} 69. Kb2 {[%clk 0:00:01]}  Kc5 {[%clk 0:00:03]} 70. b6 {[%clk 0:00:01]}  Rd1 {[%clk 0:00:01]} 0-1


[Site "https://www.chess.com"]

[Event "Titled Tuesday Blitz December 13 Early 2022"]
[White "Weetik, Vjacheslav"]
[Black "Grunberg, Mihai-Lucian"]
[WhiteFideId "4153472"]
[BlackFideId "1204149"]
[WhiteElo "2469"]
[BlackElo "2363"]
[Result "1-0"]
[Round "08"]
[TimeControl "180+1"]
[Date "2022.12.14"]
[WhiteClock "0:00:08"]
[BlackClock "0:00:35"]

1. d4 {[%clk 0:02:59]}  f5 {[%clk 0:02:54]} 2. g3 {[%clk 0:02:58]}  Nf6 {[%clk 0:02:54]} 3. Bg2 {[%clk 0:02:58]}  g6 {[%clk 0:02:55]} 4. c3 {[%clk 0:02:59]}  Bg7 {[%clk 0:02:54]} 5. Qb3 {[%clk 0:02:59]}  d5 {[%clk 0:02:54]} 6. Nh3 {[%clk 0:02:58]}  c6 {[%clk 0:02:54]} 7. Nd2 {[%clk 0:02:57]}  Qb6 {[%clk 0:02:53]} 8. Nf4 {[%clk 0:02:54]}  O-O {[%clk 0:02:51]} 9. O-O {[%clk 0:02:49]}  e6 {[%clk 0:02:48]} 10. Nf3 {[%clk 0:02:48]}  Ne4 {[%clk 0:02:44]} 11. Nd3 {[%clk 0:02:47]}  Nd7 {[%clk 0:02:42]} 12. Bf4 {[%clk 0:02:46]}  Re8 {[%clk 0:02:38]} 13. Rfd1 {[%clk 0:02:38]}  Qxb3 {[%clk 0:02:29]} 14. axb3 {[%clk 0:02:38]}  b6 {[%clk 0:02:28]} 15. b4 {[%clk 0:02:36]}  Bb7 {[%clk 0:02:27]} 16. Nfe5 {[%clk 0:02:36]}  Nxe5 {[%clk 0:02:26]} 17. Bxe5 {[%clk 0:02:36]}  Bxe5 {[%clk 0:02:19]} 18. Nxe5 {[%clk 0:02:36]}  Nd6 {[%clk 0:02:18]} 19. Ra2 {[%clk 0:02:28]}  Nf7 {[%clk 0:02:17]} 20. Nd3 {[%clk 0:02:23]}  e5 {[%clk 0:02:10]} 21. dxe5 {[%clk 0:01:26]}  Nxe5 {[%clk 0:02:10]} 22. Nxe5 {[%clk 0:01:17]}  Rxe5 {[%clk 0:02:09]} 23. e3 {[%clk 0:01:17]}  a6 {[%clk 0:02:05]} 24. b3 {[%clk 0:01:13]}  b5 {[%clk 0:02:01]} 25. Rc2 {[%clk 0:01:02]}  Kf7 {[%clk 0:01:57]} 26. c4 {[%clk 0:01:02]}  bxc4 {[%clk 0:01:47]} 27. bxc4 {[%clk 0:01:02]}  dxc4 {[%clk 0:01:45]} 28. Rd7+ {[%clk 0:00:39]}  Re7 {[%clk 0:01:44]} 29. Rxb7 {[%clk 0:00:40]}  Rxb7 {[%clk 0:01:43]} 30. Bxc6 {[%clk 0:00:40]}  Raa7 {[%clk 0:01:25]} 31. Bxb7 {[%clk 0:00:40]}  Rxb7 {[%clk 0:01:25]} 32. Rxc4 {[%clk 0:00:41]}  h6 {[%clk 0:01:18]} 33. h4 {[%clk 0:00:38]}  Rb6 {[%clk 0:01:10]} 34. Kg2 {[%clk 0:00:32]}  Kf6 {[%clk 0:01:08]} 35. Kf3 {[%clk 0:00:31]}  g5 {[%clk 0:01:08]} 36. hxg5+ {[%clk 0:00:24]}  hxg5 {[%clk 0:01:08]} 37. g4 {[%clk 0:00:25]}  fxg4+ {[%clk 0:00:58]} 38. Kxg4 {[%clk 0:00:25]}  Kg6 {[%clk 0:00:58]} 39. f3 {[%clk 0:00:22]}  Kf6 {[%clk 0:00:56]} 40. e4 {[%clk 0:00:21]}  Kg6 {[%clk 0:00:52]} 41. Rc5 {[%clk 0:00:20]}  Rxb4 {[%clk 0:00:48]} 42. Rc6+ {[%clk 0:00:18]}  Kf7 {[%clk 0:00:44]} 43. Rxa6 {[%clk 0:00:15]}  Rb5 {[%clk 0:00:44]} 44. Rd6 {[%clk 0:00:11]}  Ke7 {[%clk 0:00:40]} 45. Rd5 {[%clk 0:00:11]}  Rb1 {[%clk 0:00:39]} 46. Kxg5 {[%clk 0:00:10]}  Ke6 {[%clk 0:00:39]} 47. Kf4 {[%clk 0:00:10]}  Rf1 {[%clk 0:00:36]} 48. Ra5 {[%clk 0:00:10]}  Rh1 {[%clk 0:00:36]} 49. Ra6+ {[%clk 0:00:09]}  Ke7 {[%clk 0:00:37]} 50. Kg4 {[%clk 0:00:07]}  Kf7 {[%clk 0:00:37]} 51. f4 {[%clk 0:00:07]}  Rg1+ {[%clk 0:00:38]} 52. Kf5 {[%clk 0:00:08]}  Rh1 {[%clk 0:00:39]} 53. Ra7+ {[%clk 0:00:08]}  Kf8 {[%clk 0:00:39]} 54. e5 {[%clk 0:00:08]}  Ke8 {[%clk 0:00:40]} 55. Ke6 {[%clk 0:00:06]}  Rh6+ {[%clk 0:00:39]} 56. Kd5 {[%clk 0:00:06]}  Rh1 {[%clk 0:00:40]} 57. f5 {[%clk 0:00:06]}  Rh6 {[%clk 0:00:38]} 58. f6 {[%clk 0:00:07]}  Rh1 {[%clk 0:00:35]} 59. Ke6 {[%clk 0:00:07]}  Kd8 {[%clk 0:00:35]} 60. Ra8+ {[%clk 0:00:07]}  Kc7 {[%clk 0:00:35]} 61. f7 {[%clk 0:00:08]} 1-0


[Site "https://www.chess.com"]

[Event "Titled Tuesday Blitz December 13 Early 2022"]
[White "Winkels, Marcel"]
[Black "Buchenau, Frank"]
[WhiteFideId "1003887"]
[BlackFideId "4604350"]
[WhiteElo "1900"]
[BlackElo "2157"]
[Result "0-1"]
[Round "08"]
[TimeControl "180+1"]
[Date "2022.12.14"]
[WhiteClock "0:00:13"]
[BlackClock "0:00:59"]

1. d4 {[%clk 0:03:00]}  e6 {[%clk 0:03:00]} 2. Nc3 {[%clk 0:02:59]}  Nf6 {[%clk 0:03:00]} 3. Bf4 {[%clk 0:02:59]}  d5 {[%clk 0:02:59]} 4. e3 {[%clk 0:02:59]}  a6 {[%clk 0:02:59]} 5. Nf3 {[%clk 0:02:58]}  c5 {[%clk 0:02:58]} 6. a3 {[%clk 0:02:45]}  Nc6 {[%clk 0:02:58]} 7. Bd3 {[%clk 0:02:42]}  Bd6 {[%clk 0:02:53]} 8. Bg3 {[%clk 0:02:39]}  O-O {[%clk 0:02:52]} 9. O-O {[%clk 0:02:38]}  b5 {[%clk 0:02:51]} 10. dxc5 {[%clk 0:02:36]}  Bxc5 {[%clk 0:02:50]} 11. b4 {[%clk 0:02:20]}  Bd6 {[%clk 0:02:41]} 12. e4 {[%clk 0:02:17]}  Bxg3 {[%clk 0:02:39]} 13. hxg3 {[%clk 0:02:16]}  d4 {[%clk 0:02:38]} 14. Ne2 {[%clk 0:02:14]}  e5 {[%clk 0:02:38]} 15. c3 {[%clk 0:02:07]}  Bg4 {[%clk 0:02:18]} 16. Qc2 {[%clk 0:01:57]}  Rc8 {[%clk 0:02:15]} 17. Qb2 {[%clk 0:01:41]}  dxc3 {[%clk 0:02:10]} 18. Qxc3 {[%clk 0:01:40]}  Nd4 {[%clk 0:02:06]} 19. Qd2 {[%clk 0:01:24]}  Nb3 {[%clk 0:01:58]} 20. Qe3 {[%clk 0:01:23]}  Nxa1 {[%clk 0:01:57]} 21. Rxa1 {[%clk 0:01:22]}  Qe7 {[%clk 0:01:51]} 22. Nh4 {[%clk 0:01:08]}  Rfd8 {[%clk 0:01:47]} 23. f3 {[%clk 0:01:05]}  Be6 {[%clk 0:01:44]} 24. g4 {[%clk 0:01:05]}  Nxg4 {[%clk 0:01:41]} 25. fxg4 {[%clk 0:00:55]}  Qxh4 {[%clk 0:01:40]} 26. g5 {[%clk 0:00:49]}  Bc4 {[%clk 0:01:27]} 27. Rd1 {[%clk 0:00:47]}  Bxd3 {[%clk 0:01:19]} 28. Rxd3 {[%clk 0:00:46]}  Rxd3 {[%clk 0:01:19]} 29. Qxd3 {[%clk 0:00:46]}  Qxg5 {[%clk 0:01:19]} 30. Ng3 {[%clk 0:00:41]}  Rc1+ {[%clk 0:01:15]} 31. Kf2 {[%clk 0:00:41]}  Qf4+ {[%clk 0:01:09]} 32. Ke2 {[%clk 0:00:40]}  g6 {[%clk 0:01:05]} 33. a4 {[%clk 0:00:21]}  h5 {[%clk 0:01:03]} 34. axb5 {[%clk 0:00:20]}  axb5 {[%clk 0:01:03]} 35. Qe3 {[%clk 0:00:18]}  Rc2+ {[%clk 0:00:59]} 36. Ke1 {[%clk 0:00:13]}  Qxe3+ {[%clk 0:00:59]} 0-1


[Site "https://www.chess.com"]